fUSD/lending_fUSD_20240109
["ID","MTS","AMOUNT","RATE_DAILY","PERIOD"]
[310895183,1704805759984,139.23696865,0.00022501,2]
[310895184,1704805760019,500.0,0.00022501,2]
[310895185,1704805760043,1976.26450292,0.00022501,2]
[310895187,1704805783785,215.56,0.00021645,2]
[310895188,1704805796560,170.87,0.00021645,2]
[310895189,1704805802899,257.69,0.00019727,2]
[310895190,1704805803124,257.69,0.00021991,2]
[310895199,1704805813885,-2764.52657093,0.00022502,2]
[310895200,1704805813910,-197.33,0.00022515,2]
[310895201,1704805813933,-210.76303135,0.00022525,2]
[310895202,1704805813958,-158.81,0.00022533,2]
[310895203,1704805813981,-210.76303135,0.00022549,2]
[310895204,1704805814003,-299.93588338,0.00022553,2]
[310895205,1704805814025,-908.34393957,0.00022553,2]
[310895206,1704805814046,-524.06446348,0.00022553,2]
[310895207,1704805814068,-501.05172636,0.00022554,2]
[310895208,1704805814088,-303.76,0.00022554,2]
[310895209,1704805814109,-33323.99902136,0.00022554,2]
[310895210,1704805814129,-417.584,0.00022555,2]
[310895211,1704805814149,-344.7584,0.00022555,2]
[310895212,1704805814171,-26977.6973,0.00022555,2]
[310895213,1704805814192,-70797.6959,0.00022555,2]
[310895214,1704805814213,-3686.4216,0.00022555,2]
[310895215,1704805814235,-820.27475446,0.00022556,2]
[310895216,1704805814257,-210.76303135,0.00022572,2]
[310895217,1704805814279,-210.76303135,0.00022596,2]
[310895218,1704805814304,-24133.95,0.000226,2]
[310895219,1704805814324,-859.20873431,0.00022607,2]
[310895220,1704805814346,-470.68,0.00022614,2]
[310895221,1704805814368,-210.76303135,0.00022619,2]
[310895222,1704805814391,-197.33,0.00022629,2]
[310895223,1704805814412,-467.87088738,0.00022641,2]
[310895224,1704805814433,-210.76303135,0.00022642,2]
[310895225,1704805814453,-3635.58606393,0.00022645,2]
[310895226,1704805814473,-155.50679806,0.00022652,2]
[310895227,1704805814493,-188.90445108,0.00022652,2]
[310895228,1704805814512,-766.69037996,0.00022652,2]
[310895229,1704805814532,-192.03501615,0.00022652,2]
[310895230,1704805814557,-1204.89871329,0.00022653,2]
[310895231,1704805814579,-179242.28872756,0.00022654,2]
[310895232,1704805814599,-2391.1164984,0.00022655,2]
[310895233,1704805814619,-5240.02,0.00022655,2]
[310895234,1704805814639,-18002.50669705,0.00022656,2]
[310895235,1704805814660,-155.21161762,0.00022656,2]
[310895236,1704805814682,-155.97555376,0.00022656,2]
[310895237,1704805814701,-1634.71,0.00022656,2]
[310895238,1704805814722,-863.7186323,0.00022659,2]
[310895239,1704805814742,-179.81964,0.0002266,2]
[310895240,1704805814762,-299.86566606,0.0002266,2]
[310895241,1704805814782,-163.35829217,0.0002266,2]
[310895242,1704805814803,-336.35995625,0.0002266,2]
[310895243,1704805814825,-241.99376573,0.0002266,2]
[310895244,1704805814845,-156.42508292,0.00022661,2]
[310895245,1704805814864,-4496.67362812,0.00022661,2]
[310895246,1704805814885,-506.2012999,0.00022661,2]
[310895247,1704805815225,-233.75453784,0.00022662,2]
[310895248,1704805815245,-2234.4,0.00022662,2]
[310895249,1704805815266,-68958.55673124,0.00022663,2]
[310895322,1704805833148,-371.98279312,0.00022556,2]
[310895323,1704805833157,-1923.76720688,0.00022662,2]
[310895324,1704805833211,-414.76798855,0.00022662,2]
[310895325,1704805833224,-423.98137478,0.00022662,2]
[310895326,1704805833236,-5007.65404292,0.00022662,2]
[310895327,1704805833247,-711.52918919,0.00022662,2]
[310895328,1704805833259,-666.6,0.00022662,2]
[310895329,1704805833288,-17633.57167538,0.00022662,2]
[310895330,1704805833301,-1327.12507289,0.00022662,2]
[310895331,1704805833311,-4168.55125172,0.00022663,2]
[310895332,1704805833324,-717.0648358,0.00022663,2]
[310895333,1704805833348,-673.00990634,0.00022663,2]
[310895334,1704805833360,-57331.61164972,0.00022663,2]
[310895335,1704805833369,-210.76303135,0.00022666,2]
[310895336,1704805833378,-7499.62114374,0.00022667,2]
[310895337,1704805833387,-158.81,0.00022675,2]
[310895338,1704805833397,-562.17858949,0.00022683,2]
[310895339,1704805833406,-499.99,0.00022683,2]
[310895340,1704805833415,-210.76303135,0.00022689,2]
[310895341,1704805833425,-9283.69477455,0.00022699,2]
[310895342,1704805833434,-159.01,0.00022709,2]
[310895343,1704805833443,-210.76303135,0.00022713,2]
[310895344,1704805833453,-427.52,0.00022727,2]
[310895345,1704805833462,-210.76303135,0.00022736,2]
[310895346,1704805833470,-197.33,0.00022744,2]
[310895347,1704805833480,-210.76303135,0.00022759,2]
[310895348,1704805833490,-765.33424633,0.0002276,2]
[310895349,1704805833498,-2323.10367527,0.00022761,2]
[310895350,1704805833508,-155.49966614,0.00022768,2]
[310895351,1704805833517,-203.07724,0.0002277,2]
[310895352,1704805833527,-210.76303135,0.00022783,2]
[310895353,1704805833536,-190.94965879,0.00022784,2]
[310895354,1704805833546,-1910.0088786,0.00022792,2]
[310895355,1704805833555,-541.86350039,0.00022792,2]
[310895356,1704805833565,-7.72458235,0.00022793,2]
[310895357,1704805833576,-4646.7224,0.00022796,2]
[310895358,1704805833585,-629.1722,0.00022796,2]
[310895359,1704805833595,-155.19889994,0.00022797,2]
[310895360,1704805833604,-1432.05814376,0.00022797,2]
[310895361,1704805833614,-583.18327559,0.00022797,2]
[310895362,1704805833623,-155.31998547,0.00022797,2]
[310895364,1704805833633,-155.95184146,0.00022797,2]
[310895366,1704805833642,-2139.99838339,0.00022797,2]
[310895368,1704805833652,-1489.59550934,0.00022797,2]
[310895370,1704805833661,-2919.83036218,0.00022798,2]
[310895372,1704805833670,-253.49904241,0.000228,2]
[310895374,1704805833680,-559.3064,0.000228,2]
[310895376,1704805833689,-1000.0,0.000228,2]
[310895378,1704805833699,-22667.6492,0.000228,2]
[310895380,1704805833709,-170.7703315,0.000228,2]
[310895382,1704805833718,-210.76303135,0.00022806,2]
[310895383,1704805833727,-1000.0,0.00022811,2]
[310895385,1704805833737,-500.0,0.00022815,2]
[310895388,1704805833748,-500.0,0.00022816,2]
[310895389,1704805833759,-200.0,0.00022816,2]
[310895392,1704805833769,-200.0,0.00022816,2]
[310895394,1704805833780,-800.0,0.00022816,2]
[310895396,1704805833790,-200.0,0.00022816,2]
[310895398,1704805833801,-158.81,0.00022817,2]
[310895400,1704805833811,-210.76303135,0.0002283,2]
[310895401,1704805833824,-427.52,0.00022842,2]
[310895403,1704805833834,-210.76303135,0.00022853,2]
[310895406,1704805833844,-197.33,0.00022858,2]
[310895408,1704805833855,-210.76303135,0.00022877,2]
[310895410,1704805833864,-800.0,0.00022877,2]
[310895413,1704805833874,-337.89264457,0.00022886,2]
[310895416,1704805833884,-271.4184,0.00022889,2]
[310895419,1704805833893,-415.1854,0.00022896,2]
[310895422,1704805833903,-823.9297,0.00022896,2]
[310895425,1704805833912,-5966.1765,0.00022896,2]
[310895427,1704805833921,-3932.9545,0.00022896,2]
[310895430,1704805833931,-251.0626,0.00022896,2]
[310895434,1704805833941,-260.86670952,0.00022898,2]
[310895437,1704805833950,-235.59411495,0.00022898,2]
[310895440,1704805833960,-1249.47913221,0.00022898,2]
[310895443,1704805833969,-269.83626346,0.00022898,2]
[310895446,1704805833979,-234.34924419,0.00022898,2]
[310895449,1704805833988,-3918.60235514,0.00022898,2]
[310895452,1704805833997,-301.20793522,0.00022898,2]
[310895455,1704805834007,-1558.35542857,0.00022898,2]
[310895457,1704805834016,-3714.0,0.000229,2]
[310895460,1704805834025,-99844.9313808,0.000229,2]
[310895463,1704805834038,-26581.856875,0.000229,2]
[310895467,1704805834049,-267.5,0.000229,2]
[310895471,1704805834061,-2427.72758506,0.000229,2]
[310895473,1704805834074,-4186.53147353,0.000229,2]
[310895475,1704805834092,-815.14124487,0.000229,2]
[310895479,1704805834209,-2498.3272816,0.000229,2]
[310895480,1704805834219,-2701.40051731,0.000229,2]
[310895481,1704805834231,-8192.62444,0.000229,2]
[310895482,1704805834243,-770.01443281,0.000229,2]
[310895483,1704805834254,-258.75,0.000229,2]
[310895485,1704805834266,-418.66160033,0.000229,2]
[310895488,1704805834281,-257.69497186,0.000229,2]
[310895490,1704805834293,-4607.51088024,0.000229,2]
[310895493,1704805834316,-12802.69556271,0.000229,2]
[310895494,1704805834335,-267.3,0.000229,2]
[310895496,1704805834348,-1048.90452835,0.000229,2]
[310895498,1704805834360,-1262.54191718,0.000229,2]
[310895499,1704805834372,-345.65559679,0.000229,2]
[310895500,1704805834408,-379.81431345,0.000229,2]
[310895501,1704805834421,-8535.43123897,0.000229,2]
[310895502,1704805834432,-4638.41548501,0.000229,2]
[310895503,1704805834445,-271.48453953,0.000229,2]
[310895504,1704805834462,-565.53598908,0.000229,2]
[310895505,1704805834473,-210.76303135,0.000229,2]
[310895506,1704805834483,-172.38159461,0.000229,2]
[310895507,1704805834494,-427.52,0.00022958,2]
[310895508,1704805834505,-158.81,0.00022959,2]
[310895509,1704805834514,-270.14938494,0.00022961,2]
[310895510,1704805834544,-1387.4499996,0.00022961,2]
[310895511,1704805834557,-1613.28937146,0.00022961,2]
[310895512,1704805834572,-2159.46645124,0.00022961,2]
[310895513,1704805834591,-2640.64479276,0.00022961,2]
[310895514,1704805834602,-204.0,0.00022962,2]
[310895515,1704805834612,-197.33,0.00022972,2]
[310895516,1704805834622,-337.89264457,0.0002299,2]
[310895517,1704805834632,-337.89264457,0.0002299,2]
[310895518,1704805834642,-233.75877013,0.00022996,2]
[310895519,1704805834651,-3319.99308958,0.00022996,2]
[310895520,1704805834660,-5264.33667276,0.00022996,2]
[310895521,1704805834670,-2265.06059582,0.00022996,2]
[310895522,1704805834679,-757.38163137,0.00022997,2]
[310895523,1704805834690,-30000.0,0.00022997,2]
[310895524,1704805834700,-5319.27465842,0.00022998,2]
[310895525,1704805834709,-5088.82641457,0.00022998,2]
[310895526,1704805834718,-230.88165684,0.00022998,2]
[310895527,1704805834727,-11067.26543426,0.00022998,2]
[310895528,1704805834737,-841.04219636,0.00022998,2]
[310895529,1704805834747,-399.51765604,0.00022998,2]
[310895530,1704805834756,-3850.10818064,0.00022998,2]
[310895531,1704805834766,-155.3802462,0.00022998,2]
[310895532,1704805834775,-2194.68993616,0.00022999,2]
[310895533,1704805834784,-217.43053943,0.00022999,2]
[310895534,1704805834794,-498.56626456,0.00022999,2]
[310895535,1704805834804,-150.0,0.00022999,2]
[310895536,1704805834813,-414.13942493,0.00022999,2]
[310895537,1704805834827,-414.13942493,0.00022999,2]
[310895538,1704805834836,-414.13942493,0.00022999,2]
[310895539,1704805834846,-535.0,0.00023,2]
[310895540,1704805834855,-117633.82390874,0.00023,2]
[310895541,1704805834866,-1454.97093426,0.00023,2]
[310895559,1704805837976,150.0,0.00022436,2]
[310895584,1704805838612,-2006.4094831,0.00022999,2]
[310895586,1704805838625,-1283.61026111,0.00022999,2]
[310895588,1704805838634,-5849.78975389,0.00023,2]
[310895591,1704805838646,-1313.5126302,0.00023,2]
[310895593,1704805838657,-910.115283,0.00023,2]
[310895598,1704805838700,-114713.87577664,0.00023,2]
[310895600,1704805838710,-758155.40489104,0.00023,2]
[310895602,1704805838719,-105494.62992466,0.00023,2]
[310895604,1704805838729,-753.78035177,0.00023,2]
[310895606,1704805838738,-181889.79274685,0.00023,2]
[310895608,1704805838748,-1113694.100697,0.00023,2]
[310895610,1704805838757,-3034656.53928654,0.00023,2]
[310895612,1704805838767,-2000.0,0.00023,2]
[310895614,1704805838776,-200.0,0.00023,2]
[310895616,1704805838786,-150.0,0.00023,2]
[310895618,1704805838796,-500.0,0.00023,2]
[310895620,1704805838805,-200.0,0.00023,2]
[310895623,1704805838815,-1500.0,0.00023,2]
[310895625,1704805838826,-152.05,0.00023,2]
[310895627,1704805838836,-300.0,0.00023007,2]
[310895628,1704805838845,-1831.6962882,0.00023009,2]
[310895629,1704805838853,-24452.1847649,0.00023009,2]
[310895630,1704805838862,-2104.8226561,0.00023009,2]
[310895631,1704805838872,-19593.9997861,0.00023009,2]
[310895633,1704805838881,-2443.26207501,0.00023025,3]
[310895635,1704805838890,-683.10590471,0.00023025,2]
[310895637,1704805838899,-500.0,0.00023041,2]
[310895639,1704805838908,-427.52,0.00023073,2]
[310895641,1704805838917,-875.92834829,0.00023075,2]
[310895643,1704805838926,-197.33,0.00023086,2]
[310895645,1704805838935,-1459.80184103,0.000231,2]
[310895647,1704805838944,-2219.32641415,0.0002313,2]
[310895649,1704805838953,-158.5,0.0002315,2]
[310895650,1704805838963,-427.52,0.00023188,2]
[310895652,1704805838972,-1102.0,0.000232,2]
[310895653,1704805838981,-197.33,0.00023201,2]
[310895654,1704805838990,-2000.0,0.0002323,2]
[310895655,1704805838999,-200.0,0.0002323,2]
[310895656,1704805839008,-995.41813074,0.00023246,2]
[310895657,1704805839020,-382.8812678,0.00023288,2]
[310895658,1704805839029,-170.7168153,0.00023288,2]
[310895659,1704805839039,-441.40002122,0.00023288,2]
[310895660,1704805839048,-472.34842252,0.00023288,2]
[310895661,1704805839057,-169.39846557,0.00023288,4]
[310895662,1704805839066,-207.94027114,0.00023288,4]
[310895663,1704805839079,-296.23818044,0.00023288,4]
[310895664,1704805839088,-159.53209328,0.00023288,2]
[310895665,1704805839097,-165.49217842,0.00023288,4]
[310895666,1704805839107,-491.39709566,0.00023288,4]
[310895667,1704805839116,-439.12777134,0.00023288,2]
[310895668,1704805839125,-435.0,0.00023288,4]
[310895669,1704805839134,-435.0,0.00023288,4]
[310895671,1704805839144,-582.02,0.00023288,4]
[310895673,1704805839153,-500.0,0.00023288,4]
[310895674,1704805839163,-320.76642724,0.00023288,4]
[310895675,1704805839173,-500.0,0.00023288,4]
[310895676,1704805839182,-188.20328587,0.00023288,2]
[310895677,1704805839191,-500.0,0.00023288,2]
[310895678,1704805839200,-534.42516052,0.00023288,2]
[310895680,1704805839210,-500.0,0.00023288,2]
[310895681,1704805839219,-500.0,0.00023288,2]
[310895682,1704805839228,-500.0,0.00023288,2]
[310895683,1704805839238,-500.0,0.00023288,2]
[310895684,1704805839247,-500.0,0.00023288,2]
[310895685,1704805839256,-500.0,0.00023288,2]
[310895686,1704805839265,-343.75942988,0.00023288,2]
[310895687,1704805839274,-159.01,0.00023303,2]
[310895689,1704805839284,-427.52,0.00023304,2]
[310895691,1704805839293,-197.33,0.00023315,2]
[310895692,1704805839307,-300.0,0.0002337,2]
[310895693,1704805839317,-150.0,0.0002337,2]
[310895694,1704805839329,-150.0,0.0002337,2]
[310895695,1704805839338,-150.0,0.0002337,2]
[310895696,1704805839348,-500.0,0.00023384,2]
[310895698,1704805839357,-427.52,0.00023419,2]
[310895699,1704805839367,-197.33,0.00023429,2]
[310895700,1704805839376,-151.93,0.00023452,2]
[310895701,1704805839385,-150.0,0.00023452,2]
[310895702,1704805839394,-150.0,0.00023452,2]
[310895703,1704805839403,-2000.0,0.00023462,2]
[310895704,1704805839412,-200.0,0.00023462,2]
[310895705,1704805839422,-158.5,0.00023518,2]
[310895706,1704805839430,-427.52,0.00023534,2]
[310895707,1704805839440,-197.33,0.00023544,2]
[310895708,1704805839449,-10181.18328594,0.00023547,2]
[310895709,1704805839458,-470.68,0.00023592,2]
[310895710,1704805839467,-163.97,0.00023634,2]
[310895711,1704805839476,-427.52,0.0002365,2]
[310895712,1704805839485,-197.33,0.00023658,2]
[310895713,1704805839494,-896.46769011,0.00023697,2]
[310895714,1704805839503,-200.0,0.00023697,2]
[310895715,1704805839512,-500.0,0.00023726,2]
[310895716,1704805839521,-427.52,0.00023765,2]
[310895717,1704805839530,-197.33,0.00023772,2]
[310895718,1704805839540,-5475.43601358,0.00023809,2]
[310895719,1704805839549,-427.52,0.00023881,2]
[310895720,1704805839558,-158.5,0.00023885,2]
[310895721,1704805839567,-197.33,0.00023887,2]
[310895722,1704805839579,-159.01,0.00023897,2]
[310895724,1704805839589,-1436.1069669,0.000239,2]
[310895725,1704805839598,-200.0,0.00023934,2]
[310895726,1704805839607,-1606.8348752,0.00023952,2]
[310895727,1704805839616,-21450.402837,0.00023952,2]
[310895728,1704805839625,-1845.7854951,0.00023952,2]
[310895729,1704805839634,-17205.9895771,0.00023952,2]
[310895730,1704805839643,-1381.9734623,0.00023984,2]
[310895731,1704805839652,-18448.6209091,0.00023984,2]
[310895732,1704805839661,-1586.7483341,0.00023984,2]
[310895733,1704805839670,-14817.9793682,0.00023984,2]
[310895734,1704805839679,-427.52,0.00023996,2]
[310895735,1704805839688,-200.19348135,0.00024,2]
[310895736,1704805839697,-158.69185503,0.00024,2]
[310895737,1704805839706,-433.59715418,0.00024,2]
[310895738,1704805839716,-58087.53147251,0.00024,3]
[310895739,1704805839725,-165.409936,0.00024,2]
[310895740,1704805839734,-507.465535,0.00024,2]
[310895741,1704805839744,-2300.0,0.00024,3]
[310895742,1704805839753,-820.27475442,0.0002403,2]
[310895743,1704805839762,-500.0,0.00024068,2]
[310895744,1704805839771,-427.52,0.00024111,2]
[310895745,1704805839781,-210.85,0.00024174,2]
[310895746,1704805839790,-1157.1120494,0.00024192,2]
[310895747,1704805839800,-15446.8389812,0.00024192,2]
[310895748,1704805839809,-1327.7111731,0.00024192,2]
[310895749,1704805839818,-12429.9691592,0.00024192,2]
[310895750,1704805839830,-932.2506365,0.00024209,2]
[310895751,1704805839839,-707.3892235,0.00024209,2]
[310895752,1704805839849,-12445.0570533,0.00024209,2]
[310895753,1704805839858,-9443.2751254,0.00024209,2]
[310895754,1704805839868,-1068.6740121,0.00024209,2]
[310895755,1704805839877,-809.6368511,0.00024209,2]
[310895756,1704805839887,-10041.9589503,0.00024209,2]
[310895757,1704805839897,-7653.9487413,0.00024209,2]
[310895758,1704805839906,-169499.19693242,0.00024226,2]
[310895759,1704805839917,-12030.10308139,0.00024226,2]
[310895760,1704805839926,-158.5,0.00024253,2]
[310895761,1704805839936,-257.69,0.00024255,2]
[310895762,1704805839946,-168.46,0.00024297,2]
[310895763,1704805839956,-167.51,0.00024297,2]
[310895764,1704805839966,-167.08,0.00024297,2]
[310895765,1704805839975,-167.0,0.00024297,2]
[310895766,1704805839985,-575.83,0.00024348,2]
[310895767,1704805839994,-1379.15,0.00024358,2]
[310895768,1704805840003,-163.97,0.00024372,2]
[310895769,1704805840012,-300.0,0.00024377,2]
[310895770,1704805840022,-500.0,0.00024411,2]
[310895771,1704805840031,-208.78,0.00024432,2]
[310895772,1704805840040,-159.01,0.00024491,2]
[310895773,1704805840049,-500.63483837,0.000245,2]
[310895774,1704805840059,-167.52,0.00024546,2]
[310895775,1704805840068,-530.21,0.00024553,2]
[310895776,1704805840079,-470.68,0.00024571,2]
[310895777,1704805840088,-250.0,0.00024658,2]
[310895778,1704805840097,-2219.99310772,0.000247,2]
[310895779,1704805840107,-5475.43601358,0.00024718,2]
[310895780,1704805840116,-210.0,0.00024751,2]
[310895781,1704805840125,-500.0,0.00024753,2]
[310895782,1704805840135,-413.85401474,0.00025,2]
[310895783,1704805840144,-1246.02564199,0.00025,2]
[310895785,1704805840154,-1094.14184905,0.00025,2]
[310895789,1704805840164,-166.59384665,0.00025,2]
[310895792,1704805840173,-226.3440456,0.00025,2]
[310895795,1704805840182,-302.84681763,0.00025,2]
[310895797,1704805840192,-696.65023419,0.00025,2]
[310895800,1704805840201,-155.11214099,0.00025,2]
[310895801,1704805840210,-156.01510386,0.00025,2]
[310895802,1704805840220,-4861.911984,0.00025,2]
[310895803,1704805840229,-300.0,0.00025,2]
[310895804,1704805840238,-300.0,0.00025,2]
[310895805,1704805840247,-159.01,0.00025086,2]
[310895806,1704805840257,-3030.0706955,0.0002509,2]
[310895807,1704805840266,-500.0,0.00025096,2]
[310895808,1704805840275,-1379.15,0.00025245,2]
[310895809,1704805840285,-500.0,0.00025438,2]
[310895810,1704805840294,-820.27475442,0.00025504,2]
[310895811,1704805840308,-470.68,0.00025549,2]
[310895812,1704805840317,-204.0,0.00025608,6]
[310895813,1704805840328,-5475.43601358,0.00025627,2]
[310895814,1704805840338,-159.01,0.0002568,2]
[310895815,1704805840347,-500.0,0.00025781,2]
[310895816,1704805840357,-2350.0,0.00026,3]
[310895817,1704805840366,-300.0,0.00026,2]
[310895818,1704805840376,-300.0,0.00026,2]
[310895819,1704805840385,-150.0,0.00026079,2]
[310895820,1704805840394,-162.07,0.00026091,2]
[310895821,1704805840404,-214.76,0.00026095,2]
[310895822,1704805840413,-500.0,0.00026123,2]
[310895823,1704805840422,-1379.15,0.00026132,2]
[310895824,1704805840431,-159.01,0.00026274,2]
[310895825,1704805840440,-500.0,0.00026466,2]
[310895826,1704805840449,-257.69,0.00026518,2]
[310895827,1704805840458,-470.68,0.00026528,2]
[310895828,1704805840468,-5475.43601358,0.00026536,2]
[310895829,1704805840477,-19091.64966794,0.000267,2]
[310895830,1704805840486,-500.0,0.00026808,2]
[310895831,1704805840496,-820.27475442,0.00026978,3]
[310895832,1704805840506,-414.13942493,0.00026999,2]
[310895833,1704805840515,-556.00529572,0.00027,2]
[310895834,1704805840524,-8382.58573771,0.00027,2]
[310895835,1704805840534,-300.0,0.00027,2]
[310895836,1704805840544,-347.115779,0.00027,2]
[310895837,1704805840553,-1379.15,0.00027019,2]
[310895838,1704805840563,-575.83,0.00027053,2]
[310895839,1704805840573,-1810.65,0.00027123,2]
[310895840,1704805840582,-500.0,0.00027151,2]
[310895841,1704805840592,-293.0,0.00027226,2]
[310895842,1704805840601,-530.21,0.00027281,2]
[310895843,1704805840610,-150.0,0.00027397,2]
[310895844,1704805840620,-3000.0,0.00027397,2]
[310895845,1704805840629,-3000.0,0.00027397,2]
[310895846,1704805840639,-3000.0,0.00027397,2]
[310895847,1704805840648,-3000.0,0.00027397,2]
[310895848,1704805840658,-3000.0,0.00027397,2]
[310895849,1704805840668,-3000.0,0.00027397,2]
[310895850,1704805840677,-3000.0,0.00027397,2]
[310895851,1704805840686,-3000.0,0.00027397,2]
[310895852,1704805840695,-3000.0,0.00027397,2]
[310895853,1704805840704,-5332.5822099,0.00027397,2]
[310895854,1704805840713,-155.0,0.00027397,2]
[310895855,1704805840722,-200.0,0.00027397,2]
[310895856,1704805840731,-4132.0,0.00027397,4]
[310895857,1704805840741,-250.0,0.00027397,2]
[310895858,1704805840750,-500.0,0.00027397,2]
[310895859,1704805840759,-14022.11,0.00027397,2]
[310895860,1704805840769,-1659.0,0.00027397,4]
[310895861,1704805840778,-1801.02,0.00027397,2]
[310895862,1704805840787,-250.0,0.000274,2]
[310895863,1704805840796,-250.0,0.000274,2]
[310895864,1704805840806,-1392.44,0.000274,2]
[310895865,1704805840815,-1392.44,0.000274,2]
[310895866,1704805840825,-1392.44,0.000274,2]
[310895867,1704805840834,-1392.44,0.000274,2]
[310895868,1704805840843,-1392.44,0.000274,2]
[310895869,1704805840852,-1392.44,0.000274,2]
[310895870,1704805840862,-1392.44,0.000274,2]
[310895871,1704805840871,-1392.44,0.000274,2]
[310895872,1704805840880,-1392.44,0.000274,2]
[310895873,1704805840889,-1392.44,0.000274,2]
[310895874,1704805840899,-5475.43601358,0.00027445,2]
[310895875,1704805840908,-500.0,0.00027493,2]
[310895876,1704805840917,-500.23835312,0.000275,2]
[310895877,1704805840927,-675.36108847,0.000275,4]
[310895878,1704805840937,-4912.00162674,0.000275,2]
[310895879,1704805840946,-470.68,0.00027506,2]
[310895880,1704805840955,-1801.02,0.00027556,2]
[310895881,1704805840966,-1801.02,0.00027714,2]
[310895882,1704805840975,-500.0,0.00027836,2]
[310895883,1704805840984,-1801.02,0.00027872,2]
[310895884,1704805840993,-1379.15,0.00027906,2]
[310895885,1704805841002,-152.67022114,0.00027945,2]
[310895886,1704805841012,-1151.01,0.00027945,2]
[310895887,1704805841021,-6711.36,0.00027945,2]
[310895888,1704805841030,-167574.0,0.00027967,5]
[310895889,1704805841039,-686.87814676,0.00028,2]
[310895890,1704805841049,-301.28698158,0.00028,2]
[310895891,1704805841059,-1118.01984579,0.00028,2]
[310895892,1704805841068,-5873.47318578,0.00028,2]
[310895893,1704805841079,-2400.0,0.00028,3]
[310895894,1704805841088,-300.0,0.00028,2]
[310895895,1704805841097,-1801.02,0.0002803,2]
[310895896,1704805841106,-500.0,0.00028178,2]
[310895897,1704805841116,-1801.02,0.00028189,2]
[310895898,1704805841126,-204.0,0.00028254,10]
[310895899,1704805841135,-168.46,0.00028307,2]
[310895900,1704805841145,-167.08,0.00028307,2]
[310895901,1704805841154,-167.0,0.00028307,2]
[310895902,1704805841164,-1801.02,0.00028347,2]
[310895903,1704805841173,-5475.43601358,0.00028355,2]
[310895904,1704805841182,-820.27475442,0.00028451,4]
[310895905,1704805841192,-470.68,0.00028485,2]
[310895906,1704805841201,-1801.02,0.00028505,2]
[310895907,1704805841211,-500.0,0.00028521,2]
[310895908,1704805841220,-1801.02,0.00028664,2]
[310895909,1704805841230,-155.0,0.00028767,2]
[310895910,1704805841239,-257.69,0.00028782,2]
[310895911,1704805841248,-1379.15,0.00028793,2]
[310895912,1704805841258,-414.13942493,0.00028799,2]
[310895913,1704805841268,-973244.12039854,0.000288,2]
[310895914,1704805841277,-1801.02,0.00028822,2]
[310895915,1704805841286,-500.0,0.00028863,2]
[310895916,1704805841295,-300.0,0.00029,2]
[310895917,1704805841308,-500.0,0.00029205,2]
[310895918,1704805841317,-289.85694,0.00029263,2]
[310895919,1704805841328,-5475.43601358,0.00029264,2]
[310895920,1704805841337,-439.48830365,0.000294,2]
[310895921,1704805841347,-439.48830346,0.000294,2]
[310895922,1704805841356,-439.48830346,0.000294,2]
[310895923,1704805841365,-439.48830346,0.000294,2]
[310895924,1704805841374,-439.48830346,0.000294,2]
[310895925,1704805841384,-439.48830346,0.000294,2]
[310895926,1704805841393,-439.48830346,0.000294,2]
[310895927,1704805841402,-439.48830346,0.000294,2]
[310895928,1704805841412,-439.48830346,0.000294,2]
[310895929,1704805841421,-439.48830346,0.000294,2]
[310895930,1704805841431,-439.48830346,0.000294,2]
[310895931,1704805841440,-439.48830346,0.000294,2]
[310895932,1704805841449,-439.48830346,0.000294,2]
[310895933,1704805841458,-439.48830346,0.000294,2]
[310895934,1704805841468,-439.48830346,0.000294,2]